bitfinex/quotes_SOLUSD_20230903
["timestamp","ask_amount","ask_price","bid_price","bid_amount"]
[1693736118558,89.98514067,19.389,19.366,20.0]
[1693736118741,89.98514067,19.389,19.367,55.0]
[1693736119045,81.94014067,19.389,19.367,55.0]
[1693736121647,81.94014067,19.389,19.367,54.0]
[1693736128263,89.98614067,19.389,19.367,54.0]
[1693736128860,159.57372518,19.389,19.367,54.0]
[1693736131467,159.57372518,19.389,19.367,69.27723282]
[1693736134876,151.52772518,19.389,19.367,69.27723282]
[1693736135368,4.94461036,19.389,19.368,20.0]
[1693736135571,4.94461036,19.393,19.369,95.90828379]
[1693736135773,4.94461036,19.395,19.369,121.66923854]
[1693736136064,12.98761036,19.395,19.37,39.4262]
[1693736136271,12.98761036,19.395,19.371,55.0]
[1693736136459,12.98761036,19.395,19.372,20.0]
[1693736136665,12.98761036,19.395,19.373,55.0]
[1693736136858,12.98761036,19.395,19.374,20.0]
[1693736137057,12.98761036,19.395,19.375,55.0]
[1693736137254,12.98761036,19.395,19.376,20.0]
[1693736137573,12.98761036,19.395,19.377,55.0]
[1693736138468,4.94461036,19.395,19.377,55.0]
[1693736138673,4.94461036,19.396,19.377,55.0]
[1693736138972,24.94461036,19.396,19.377,55.0]
[1693736139170,32.98661036,19.396,19.377,55.0]
[1693736140062,24.94461036,19.396,19.377,55.0]
[1693736142875,24.94461036,19.396,19.377,54.0]
[1693736143981,4.94461036,19.396,19.377,54.0]
[1693736144169,24.94461036,19.397,19.377,54.0]
[1693736145484,20.0,19.396,19.377,54.0]
[1693736145667,4.94461036,19.397,19.377,54.0]
[1693736146577,4.94461036,19.398,19.377,54.0]
[1693736148372,12.98661036,19.398,19.377,54.0]
[1693736148760,4.94461036,19.396,19.377,54.0]
[1693736151273,4.94461036,19.398,19.377,54.0]
[1693736167612,4.94461036,19.4,19.377,54.0]
[1693736167808,4.94461036,19.402,19.378,45.76095475]
[1693736167991,4.94461036,19.402,19.379,55.0]
[1693736168195,4.94461036,19.402,19.38,20.0]
[1693736168392,4.94461036,19.402,19.381,55.0]
[1693736168610,4.94461036,19.402,19.382,20.0]
[1693736168809,4.94461036,19.402,19.383,55.0]
[1693736169205,4.94461036,19.402,19.384,20.0]
[1693736169403,4.94461036,19.402,19.385,55.0]
[1693736169606,4.94461036,19.402,19.386,20.0]
[1693736169907,4.94461036,19.402,19.387,55.0]
[1693736175812,24.94461036,19.406,19.387,55.0]
[1693736177204,4.94461036,19.406,19.388,20.0]
[1693736177411,4.94461036,19.407,19.389,55.0]
[1693736177611,4.94461036,19.407,19.39,20.0]
[1693736177819,4.94461036,19.413,19.391,55.0]
[1693736178211,4.94461036,19.413,19.392,20.0]
[1693736178412,4.94461036,19.413,19.393,55.0]
[1693736178612,4.94461036,19.413,19.394,20.0]
[1693736178921,4.94461036,19.413,19.395,55.0]
[1693736179103,4.94461036,19.413,19.396,20.0]
[1693736179308,4.94461036,19.413,19.397,55.0]
[1693736180410,17.12388649,19.412,19.397,55.0]
[1693736180713,4.94461036,19.411,19.397,55.0]
[1693736184326,4.94461036,19.413,19.397,55.0]
[1693736191722,24.94461036,19.417,19.397,55.0]
[1693736191910,42.06892433,19.417,19.397,55.0]
[1693736194819,24.94461036,19.417,19.397,55.0]
[1693736195429,17.12431397,19.416,19.397,55.0]
[1693736195733,4.94461036,19.415,19.397,55.0]
[1693736206532,4.94461036,19.416,19.397,55.0]
[1693736214149,4.94461036,19.416,19.396,56.42600618]
[1693736215352,4.94461036,19.416,19.397,55.0]
[1693736216849,4.94461036,19.417,19.398,20.0]
[1693736217043,4.94461036,19.418,19.399,55.0]
[1693736217251,4.94461036,19.418,19.4,20.0]
[1693736217550,4.94461036,19.42,19.401,55.0]
[1693736217753,22.06892433,19.42,19.402,20.0]
[1693736217950,22.06892433,19.42,19.403,55.0]
[1693736218150,22.06892433,19.42,19.404,20.0]
[1693736218452,22.06892433,19.42,19.405,55.0]
[1693736218749,22.06892433,19.42,19.406,20.0]
[1693736218947,22.06892433,19.42,19.407,55.0]
[1693736221454,4.94461036,19.42,19.407,55.0]
[1693736231358,4.94461036,19.42,19.407,96.13343636]
[1693736235762,4.94461036,19.421,19.407,96.13343636]
[1693736236163,4.94461036,19.423,19.407,96.13343636]
[1693736236563,22.06892433,19.423,19.407,96.13343636]
[1693736236754,36.87147306,19.422,19.407,96.13343636]
[1693736236954,4.94461036,19.421,19.407,96.13343636]
[1693736249274,4.94461036,19.421,19.407,111.56024047]
[1693736252881,4.94461036,19.421,19.407,41.13343636]
[1693736253069,4.94461036,19.421,19.406,20.0]
[1693736253378,3.94461036,19.421,19.407,20.0]
[1693736253565,3.94461036,19.421,19.404,20.0]
[1693736253764,3.94461036,19.421,19.405,1.0]
[1693736254465,3.94461036,19.421,19.405,56.0]
[1693736254665,3.94461036,19.421,19.406,20.0]
[1693736254858,3.94461036,19.421,19.407,56.0]
[1693736255063,3.94461036,19.421,19.407,55.0]
[1693736266373,3.94461036,19.421,19.408,0.58091776]
[1693736266574,3.94461036,19.421,19.407,55.0]
[1693736267877,3.94461036,19.421,19.407,96.22061855]
[1693736270278,3.94461036,19.423,19.407,96.22061855]
[1693736270680,3.94461036,19.425,19.408,0.55482256]
[1693736270882,3.94461036,19.425,19.407,96.22061855]
[1693736271182,58.94461036,19.425,19.407,96.22061855]
[1693736275477,111.25535493,19.425,19.407,96.22061855]
[1693736277492,36.87147306,19.424,19.407,96.22061855]
[1693736277691,3.94461036,19.423,19.407,96.22061855]
[1693736280386,58.94461036,19.423,19.407,41.22061855]
[1693736280587,134.47243111,19.422,19.406,20.0]
[1693736280786,3.94461036,19.421,19.405,20.0]
[1693736280978,62.02878703,19.42,19.405,20.0]
[1693736281174,3.94461036,19.419,19.405,20.0]
[1693736281389,21.06892433,19.419,19.405,20.0]
[1693736281989,21.06892433,19.419,19.406,55.0]
[1693736282193,21.06892433,19.419,19.407,20.0]
[1693736282375,29.10192433,19.419,19.407,20.0]
[1693736282580,17.12431397,19.418,19.407,20.0]
[1693736282890,17.12431397,19.418,19.405,20.0]
[1693736282891,3.94461036,19.417,19.405,20.0]
[1693736290486,86.97861036,19.417,19.38,250.0]
[1693736290797,168.20911145,19.416,19.392,21.0]
[1693736291091,8.036,19.413,19.392,21.0]
[1693736291303,21.06892433,19.412,19.392,21.0]
[1693736291893,21.06892433,19.412,19.393,55.0]
[1693736292084,21.06892433,19.412,19.394,21.0]
[1693736292285,21.06892433,19.412,19.395,55.0]
[1693736292483,21.06892433,19.412,19.396,1.0]
[1693736292681,21.06892433,19.412,19.396,21.0]
[1693736292886,21.06892433,19.412,19.397,55.0]
[1693736300591,21.06892433,19.412,19.396,35.33402061]
[1693736300898,55.0,19.411,19.396,35.33402061]
[1693736301094,3.94461036,19.41,19.396,35.33402061]
[1693736301302,3.94461036,19.411,19.396,35.33402061]
[1693736302008,3.94461036,19.411,19.397,55.0]
[1693736303105,3.94461036,19.411,19.398,0.94730069]
[1693736303408,3.94461036,19.414,19.398,0.94730069]
[1693736303616,58.94461036,19.414,19.398,0.94730069]
[1693736305309,95.81608342,19.414,19.398,0.94730069]
[1693736310116,40.81608342,19.414,19.398,0.94730069]
[1693736313209,3.94461036,19.414,19.398,0.94730069]
[1693736317120,3.94461036,19.415,19.398,0.94730069]
[1693736317621,88.98298293,19.418,19.398,0.94730069]
[1693736317825,255.61372496,19.418,19.398,0.94730069]
[1693736321821,238.48941099,19.418,19.398,0.94730069]
[1693736324123,230.45641099,19.418,19.398,0.94730069]
[1693736326729,230.45641099,19.418,19.398,0.44730069]
[1693736330026,238.48941099,19.418,19.398,0.44730069]
[1693736330931,210.45641099,19.418,19.398,0.44730069]
[1693736331135,20.0,19.417,19.398,0.44730069]
[1693736331437,4.44461036,19.416,19.398,0.44730069]
[1693736334224,4.44461036,19.417,19.398,46.20825544]
[1693736334429,4.44461036,19.417,19.399,80.76095475]
[1693736334735,4.44461036,19.417,19.4,20.5]
[1693736334920,4.44461036,19.419,19.401,55.0]
[1693736335116,4.44461036,19.419,19.402,0.5]
[1693736335433,4.44461036,19.419,19.402,20.5]
[1693736335632,4.44461036,19.419,19.404,0.5]
[1693736335835,4.44461036,19.419,19.404,20.5]
[1693736336139,4.44461036,19.419,19.405,55.0]
[1693736336433,4.44461036,19.419,19.406,20.0]
[1693736336638,4.44461036,19.419,19.407,55.0]
[1693736338637,4.44461036,19.422,19.407,55.0]
[1693736343827,4.44461036,19.422,19.408,0.5]
[1693736347238,4.44461036,19.422,19.407,55.0]
[1693736347544,4.44461036,19.422,19.408,0.5]
[1693736350045,4.44461036,19.422,19.407,95.8041237]
[1693736350548,4.44461036,19.423,19.408,0.5]
[1693736350944,99.4996,19.422,19.408,0.5]
[1693736351146,4.44461036,19.421,19.407,95.8041237]
[1693736351943,4.44461036,19.425,19.408,0.5]
[1693736352544,4.44461036,19.423,19.407,95.8041237]
[1693736352745,4.44461036,19.425,19.408,0.5]
[1693736353746,4.44461036,19.423,19.408,0.5]
[1693736357551,4.44461036,19.423,19.407,95.8041237]
[1693736357749,4.44461036,19.425,19.408,0.5]
[1693736358131,4.44461036,19.423,19.407,95.8041237]
[1693736358942,4.44461036,19.425,19.408,0.5]
[1693736360352,4.44461036,19.423,19.407,95.8041237]
[1693736360653,4.44461036,19.425,19.408,0.5]
[1693736361355,95.6064,19.424,19.408,0.5]
[1693736361645,4.44461036,19.423,19.407,95.8041237]
[1693736361852,4.44461036,19.425,19.408,0.5]
[1693736362049,4.44461036,19.425,19.407,95.8041237]
[1693736362248,4.44461036,19.425,19.408,0.5]
[1693736362952,95.6064,19.424,19.408,0.5]
[1693736363154,4.44461036,19.423,19.407,95.8041237]
[1693736363840,4.44461036,19.425,19.408,0.5]
[1693736364242,4.44461036,19.423,19.407,95.8041237]
[1693736364439,4.44461036,19.428,19.408,0.5]
[1693736364955,97.7572,19.427,19.408,0.5]
[1693736365147,24.44461036,19.426,19.407,95.8041237]
[1693736365848,24.44461036,19.426,19.408,0.5]
[1693736374761,24.44461036,19.426,19.407,95.8041237]
[1693736374948,24.44461036,19.426,19.408,0.49493268]
[1693736377659,24.44461036,19.426,19.407,95.8041237]
[1693736378564,24.44461036,19.426,19.408,0.5]
[1693736379365,24.44461036,19.426,19.407,95.8041237]
[1693736384155,61.31608342,19.426,19.407,95.8041237]
[1693736384355,61.31608342,19.426,19.408,0.5]
[1693736384867,61.31608342,19.426,19.407,95.8041237]
[1693736385258,61.31608342,19.426,19.408,0.49742004]
[1693736386373,61.31608342,19.426,19.407,95.8041237]
[1693736386763,61.31608342,19.426,19.408,0.5]
[1693736389465,61.31608342,19.426,19.407,95.8041237]
[1693736391575,61.31608342,19.426,19.408,0.5]
[1693736394872,61.31608342,19.426,19.407,95.8041237]
[1693736395270,61.31608342,19.426,19.408,0.5]
[1693736400581,52.31074457,19.425,19.408,0.5]
[1693736400872,4.44461036,19.424,19.408,0.5]
[1693736401679,4.44461036,19.424,19.408,55.5]
[1693736402680,4.44461036,19.424,19.408,55.0]
[1693736403377,4.44461036,19.424,19.409,0.5]
[1693736403585,4.44461036,19.424,19.408,55.0]
[1693736403969,4.44461036,19.424,19.409,0.5]
[1693736406279,41.31608342,19.424,19.409,0.5]
[1693736406978,41.31608342,19.424,19.408,55.0]
[1693736410686,41.31608342,19.424,19.409,0.5]
[1693736411075,49.34708342,19.424,19.408,0.5]
[1693736411276,49.34708342,19.424,19.407,40.8041237]
[1693736411481,49.34708342,19.424,19.406,15.76237112]
[1693736411686,49.34708342,19.424,19.407,20.0]
[1693736412186,41.31608342,19.424,19.407,20.0]
[1693736412373,41.31608342,19.424,19.408,55.0]
[1693736416893,52.31074457,19.423,19.408,55.0]
[1693736417093,4.44461036,19.422,19.408,55.0]
[1693736425392,4.44461036,19.425,19.408,96.18350515]
[1693736429305,41.31608342,19.425,19.408,96.18350515]
[1693736432411,52.31074457,19.424,19.408,96.18350515]
[1693736432600,4.44461036,19.423,19.408,96.18350515]
[1693736433307,41.31608342,19.423,19.408,96.18350515]
[1693736433503,41.31608342,19.423,19.408,41.18350515]
[1693736433504,49.34708342,19.423,19.408,41.18350515]
[1693736433708,49.34708342,19.423,19.407,20.0]
[1693736433910,49.34708342,19.423,19.407,0.5]
[1693736434508,49.34708342,19.423,19.406,20.0]
[1693736435024,49.34708342,19.423,19.407,55.5]
[1693736435702,41.31608342,19.423,19.407,55.5]
[1693736448330,41.31608342,19.423,19.407,96.62577319]
[1693736479255,4.44461036,19.423,19.407,96.62577319]
[1693736479467,4.44461036,19.425,19.407,96.62577319]
[1693736481658,12.47561036,19.425,19.407,96.62577319]
[1693736489060,4.44461036,19.425,19.407,96.62577319]
[1693736499367,12.47461036,19.425,19.407,96.62577319]
[1693736508672,12.47461036,19.425,19.407,41.62577319]
[1693736508966,33.987,19.419,19.404,40.61030927]
[1693736509277,21.56850089,19.418,19.406,0.5]
[1693736509659,21.56850089,19.418,19.399,0.5]
[1693736509860,29.60250089,19.418,19.399,0.5]
[1693736510061,29.60250089,19.418,19.398,0.5]
[1693736510261,29.60250089,19.418,19.398,55.5]
[1693736510466,29.60250089,19.418,19.399,20.0]
[1693736510663,29.60250089,19.418,19.4,55.5]
[1693736510970,21.56850089,19.418,19.401,20.0]
[1693736511276,21.56850089,19.418,19.402,55.5]
[1693736511669,21.56850089,19.418,19.403,20.0]
[1693736511979,21.56850089,19.418,19.404,55.5]
[1693736512276,21.56850089,19.418,19.405,20.0]
[1693736512479,21.56850089,19.418,19.406,0.5]
[1693736514574,29.60250089,19.418,19.406,0.5]
[1693736515465,21.56850089,19.418,19.406,0.5]
[1693736518872,115.64147306,19.417,19.406,0.5]
[1693736519180,115.64147306,19.417,19.4,41.29896907]
[1693736519181,29.60250089,19.416,19.401,0.5]
[1693736519364,4.44461036,19.414,19.397,0.5]
[1693736519564,4.44461036,19.414,19.397,20.5]
[1693736520178,4.44461036,19.414,19.399,0.5]
[1693736523473,78.14424546,19.414,19.398,0.5]
[1693736523668,78.14424546,19.414,19.396,0.5]
[1693736523873,55.0,19.413,19.396,0.5]
[1693736524072,4.44461036,19.412,19.396,0.5]
[1693736524674,4.44461036,19.412,19.396,55.5]
[1693736524874,4.44461036,19.412,19.397,20.0]
[1693736525087,4.44461036,19.412,19.398,0.5]
[1693736526381,12.48061036,19.412,19.398,0.5]
[1693736526685,55.0,19.411,19.398,0.5]
[1693736526886,4.44461036,19.41,19.398,0.5]
[1693736558915,12.48161036,19.41,19.398,0.5]
[1693736564618,4.44461036,19.41,19.398,0.5]
[1693736576423,12.48161036,19.41,19.398,0.5]
[1693736576625,145.01259644,19.409,19.398,0.5]
[1693736576920,4.44461036,19.405,19.387,15.54432989]
[1693736577124,67.48361036,19.405,19.377,25.76095475]
[1693736577327,84.60750089,19.405,19.378,0.5]
[1693736577629,4.44461036,19.403,19.378,0.5]
[1693736577827,59.44461036,19.403,19.378,75.5]
[1693736578028,59.44461036,19.403,19.378,20.5]
[1693736579313,67.48461036,19.403,19.378,20.5]
[1693736579514,67.48461036,19.403,19.38,0.5]
[1693736579715,67.48461036,19.403,19.38,20.5]
[1693736579930,67.48461036,19.403,19.382,0.5]
[1693736580115,67.48461036,19.403,19.382,20.5]
[1693736580318,67.48461036,19.403,19.384,0.5]
[1693736580714,67.48461036,19.403,19.384,20.5]
[1693736580913,67.48461036,19.403,19.385,55.0]
[1693736581227,67.48461036,19.403,19.386,20.5]
[1693736581427,67.48461036,19.403,19.387,55.0]
[1693736581621,67.48461036,19.403,19.388,0.5]
[1693736582718,59.44461036,19.403,19.388,0.5]
[1693736596041,67.48461036,19.403,19.388,0.5]
[1693736603446,59.44461036,19.403,19.388,0.5]
[1693736603746,67.48461036,19.403,19.388,0.5]
[1693736607564,84.60850089,19.403,19.388,0.5]
[1693736608249,137.4972068,19.403,19.385,20.5]
[1693736612344,17.12389053,19.402,19.385,20.5]
[1693736612554,59.44461036,19.401,19.385,20.5]
[1693736616152,20.0,19.4,19.385,0.5]
[1693736616458,8.042,19.398,19.378,0.5]
[1693736616640,175.20681036,19.397,19.378,55.5]
[1693736616840,183.24881036,19.397,19.378,55.5]
[1693736617154,183.24881036,19.397,19.378,96.86635706]
[1693736617655,183.24881036,19.397,19.378,111.95923631]
[1693736621747,200.37270089,19.397,19.378,111.95923631]
[1693736622149,245.86276052,19.397,19.378,111.95923631]
[1693736622568,271.84576052,19.397,19.378,41.86635706]
[1693736622753,121.55293662,19.396,19.378,41.86635706]
[1693736622949,8.044,19.393,19.378,41.86635706]
[1693736623259,59.44461036,19.392,19.378,41.86635706]
[1693736623653,4.44461036,19.39,19.378,41.86635706]
[1693736627047,4.44461036,19.39,19.378,41.36635706]
[1693736627249,4.44461036,19.39,19.379,0.5]
[1693736627456,4.44461036,19.39,19.376,15.70743033]
[1693736627457,4.44461036,19.39,19.377,20.5]
[1693736630074,59.44461036,19.39,19.377,20.5]
[1693736630457,59.44461036,19.39,19.377,0.5]
[1693736631059,59.44461036,19.39,19.377,20.5]
[1693736635558,59.44461036,19.39,19.377,20.0]
[1693736636168,59.44461036,19.39,19.378,0.5]
[1693736642558,59.44461036,19.39,19.374,0.5]
[1693736642872,59.44461036,19.39,19.374,55.5]
[1693736643056,59.44461036,19.39,19.376,0.5]
[1693736643474,59.44461036,19.39,19.376,20.5]
[1693736655577,4.44461036,19.39,19.377,55.0]
[1693736655785,4.44461036,19.39,19.378,0.5]
[1693736656074,4.44461036,19.392,19.378,0.5]
[1693736656275,4.44461036,19.388,19.378,0.5]
[1693736661381,4.44461036,19.392,19.378,0.5]
[1693736664780,4.44461036,19.392,19.377,55.0]
[1693736664976,4.44461036,19.392,19.377,80.76095475]
[1693736669275,24.94461036,19.398,19.377,80.76095475]
[1693736669476,55.0,19.397,19.377,80.76095475]
[1693736669790,24.94461036,19.396,19.377,80.76095475]
[1693736680696,24.94461036,19.396,19.378,25.76095475]
[1693736680885,4.94461036,19.397,19.379,55.0]
[1693736681282,4.94461036,19.398,19.38,20.0]
[1693736681501,90.7857,19.399,19.381,55.0]
[1693736681681,90.7857,19.399,19.382,45.76095475]
[1693736681885,90.7857,19.399,19.383,55.0]
[1693736682086,4.94461036,19.398,19.384,20.0]
[1693736682388,4.94461036,19.398,19.385,55.0]
[1693736682582,4.94461036,19.406,19.385,55.0]
[1693736682787,121.52278262,19.405,19.386,20.0]
[1693736682994,4.94461036,19.404,19.387,55.0]
[1693736683188,22.06850089,19.404,19.387,55.0]
[1693736683590,30.10750089,19.404,19.387,55.0]
[1693736684096,22.06850089,19.404,19.387,55.0]
[1693736689688,22.06850089,19.404,19.387,70.64241485]
[1693736696504,22.06850089,19.404,19.387,112.56918121]
[1693736705607,17.12389053,19.403,19.386,20.0]
[1693736705802,34.019,19.401,19.387,20.0]
[1693736706008,77.06850089,19.4,19.384,15.21041773]
[1693736706220,8.042,19.397,19.385,20.0]
[1693736706521,4.94461036,19.396,19.383,20.0]
[1693736706720,4.94461036,19.397,19.383,20.0]
[1693736706916,4.94461036,19.397,19.384,55.0]
[1693736707121,4.94461036,19.397,19.385,20.0]
[1693736709725,4.94461036,19.398,19.385,20.0]
[1693736711324,4.94461036,19.399,19.385,20.0]
[1693736711522,55.0,19.398,19.385,20.0]
[1693736711722,4.94461036,19.397,19.385,20.0]
[1693736712223,4.94461036,19.397,19.382,41.24251805]
[1693736712411,55.0,19.396,19.383,20.0]
[1693736712617,4.94461036,19.395,19.38,20.0]
[1693736713915,4.94461036,19.395,19.381,55.0]
[1693736714114,4.94461036,19.395,19.382,20.0]
[1693736716316,4.94461036,19.395,19.383,55.0]
[1693736716535,4.94461036,19.399,19.384,20.0]
[1693736716835,4.94461036,19.397,19.384,20.0]
[1693736717726,4.94461036,19.397,19.385,55.0]
[1693736717930,4.94461036,19.402,19.386,20.0]
[1693736718131,4.94461036,19.402,19.387,55.0]
[1693736718932,55.0,19.401,19.387,55.0]
[1693736719127,4.94461036,19.4,19.387,55.0]
[1693736728433,4.94461036,19.4,19.386,20.0]
[1693736728735,4.94461036,19.4,19.384,20.0]
[1693736728932,4.94461036,19.4,19.385,55.0]
[1693736729132,4.94461036,19.4,19.386,20.0]
[1693736729436,4.94461036,19.398,19.38,20.0]
[1693736730638,4.94461036,19.398,19.381,55.0]
[1693736730837,4.94461036,19.398,19.382,20.0]
[1693736731039,4.94461036,19.398,19.383,55.0]
[1693736731337,4.94461036,19.398,19.384,20.0]
[1693736740045,4.94461036,19.398,19.385,55.0]
[1693736740240,4.94461036,19.398,19.386,20.0]
[1693736757079,4.94461036,19.4,19.386,20.0]
[1693736801814,4.94461036,19.4,19.387,55.0]
[1693736802010,4.94461036,19.4,19.386,20.0]
[1693736802212,4.94461036,19.4,19.385,20.0]
[1693736802516,133.27523102,19.4,19.386,55.0]
[1693736802812,133.27523102,19.4,19.387,20.0]
[1693736810515,31.93105875,19.399,19.387,20.0]
[1693736810722,4.94461036,19.398,19.385,20.0]
[1693736810920,22.06668449,19.398,19.385,20.0]
[1693736815918,55.0,19.397,19.385,20.0]
[1693736816119,4.94461036,19.396,19.385,20.0]
[1693736816314,55.0,19.395,19.385,20.0]
[1693736816512,4.94461036,19.394,19.385,20.0]
[1693736830231,4.94461036,19.398,19.385,20.0]
[1693736831529,4.94461036,19.399,19.385,20.0]
[1693736833439,4.94461036,19.399,19.386,55.0]
[1693736833641,4.94461036,19.399,19.387,20.0]
[1693736846747,36.87566911,19.399,19.387,20.0]
[1693736846947,59.72556209,19.399,19.387,20.0]
[1693736852553,55.0,19.398,19.385,20.0]
[1693736852738,4.94461036,19.397,19.385,20.0]
[1693736861152,4.94461036,19.398,19.385,20.0]
[1693736861356,91.071,19.4,19.386,55.0]
[1693736861357,4.94461036,19.399,19.386,55.0]
[1693736861552,4.94461036,19.399,19.387,20.0]
[1693736930410,4.94461036,19.403,19.388,55.0]
[1693736942120,4.94461036,19.403,19.388,97.2238267]
[1693736968327,24.94461036,19.406,19.388,97.2238267]
[1693736970527,32.98261036,19.406,19.388,97.2238267]
[1693736971625,24.94461036,19.406,19.388,97.2238267]
[1693736977543,32.98261036,19.406,19.388,97.2238267]
[1693736983744,24.94461036,19.406,19.388,97.2238267]
[1693736984548,32.98261036,19.406,19.388,97.2238267]
[1693736997159,24.94461036,19.406,19.388,97.2238267]
[1693737028087,24.94461036,19.406,19.388,96.7238267]
[1693737036280,24.44461036,19.406,19.389,0.5]
[1693737037784,4.44461036,19.406,19.389,26.26095475]
[1693737038095,400.1,19.413,19.391,0.5]
[1693737038096,4.44461036,19.412,19.391,0.5]
[1693737038276,4.44461036,19.412,19.392,71.55321337]
[1693737038480,4.44461036,19.412,19.394,0.5]
[1693737038677,4.44461036,19.412,19.395,25.76095475]
[1693737038894,4.44461036,19.412,19.397,0.5]
[1693737039195,4.44461036,19.417,19.397,0.5]
[1693737039398,24.44461036,19.417,19.397,0.5]
[1693737041481,24.44461036,19.417,19.397,26.26095475]
[1693737041695,24.44461036,19.417,19.399,0.5]
[1693737049199,121.74701036,19.417,19.399,0.5]
[1693737050499,121.74701036,19.417,19.399,15.6283505]
[1693737050701,121.74701036,19.417,19.401,0.5]
[1693737065704,121.74701036,19.417,19.401,41.75773195]
[1693737065918,121.74701036,19.417,19.402,55.0]
[1693737066119,121.74701036,19.417,19.403,0.5]
[1693737121465,101.74701036,19.417,19.404,25.76095475]
[1693737121754,97.3024,19.417,19.405,55.5]
[1693737121961,97.3024,19.417,19.406,45.76095475]
[1693737122257,97.3024,19.417,19.407,55.5]
[1693737122856,4.44461036,19.426,19.407,55.5]
[1693737123249,24.44461036,19.426,19.407,55.5]
[1693737123665,80.80756209,19.426,19.407,55.5]
[1693737124053,92.5588,19.425,19.407,55.5]
[1693737124253,12.47561036,19.424,19.407,55.5]
[1693737128067,4.44461036,19.424,19.407,55.5]
[1693737130182,12.47561036,19.424,19.407,55.5]
[1693737130780,12.47561036,19.424,19.407,71.18160741]
[1693737133079,4.44461036,19.424,19.407,16.18160741]
[1693737133284,59.44461036,19.424,19.407,16.18160741]
[1693737134379,59.44461036,19.424,19.408,55.0]
[1693737134579,59.44461036,19.424,19.409,0.5]
[1693737143786,4.44461036,19.424,19.409,0.5]
[1693737148594,4.44461036,19.424,19.409,42.53606387]
[1693737148895,4.44461036,19.424,19.41,55.0]
[1693737149196,4.44461036,19.424,19.411,0.5]
[1693737260273,4.44461036,19.424,19.41,55.0]
[1693737275491,3.94461036,19.424,19.411,0.5]
[1693737280692,92.5588,19.425,19.411,46.26095475]
[1693737280894,92.5588,19.425,19.412,80.76095475]
[1693737281197,92.5588,19.425,19.413,20.5]
[1693737281489,92.5588,19.425,19.415,0.5]
[1693737281882,92.5588,19.425,19.415,20.5]
[1693737282083,92.5588,19.425,19.417,0.5]
[1693737282278,92.5588,19.425,19.417,20.5]
[1693737282476,92.5588,19.425,19.418,55.0]
[1693737282684,92.5588,19.425,19.419,0.5]
[1693737287588,92.5588,19.425,19.418,0.5]
[1693737287787,92.5588,19.425,19.411,0.5]
[1693737287993,92.5588,19.425,19.416,0.5]
[1693737288189,92.5588,19.425,19.411,0.5]
[1693737288389,92.5588,19.425,19.411,55.5]
[1693737288589,92.5588,19.425,19.413,0.5]
[1693737288789,92.5588,19.425,19.413,55.5]
[1693737289189,92.5588,19.425,19.415,0.5]
[1693737289501,92.5588,19.425,19.415,55.5]
[1693737289691,92.5588,19.425,19.416,20.0]
[1693737289891,92.5588,19.425,19.417,0.5]
[1693737290885,92.5588,19.425,19.417,55.5]
[1693737301091,92.5588,19.425,19.417,0.5]
[1693737301298,92.5588,19.425,19.417,20.5]
[1693737309510,468.46311207,19.43,19.418,55.0]
[1693737309714,97.2209,19.432,19.419,0.5]
[1693737309911,3.34043896,19.431,19.419,0.5]
[1693737320821,3.34043896,19.431,19.419,41.22090627]
[1693737321022,3.34043896,19.431,19.42,55.0]
[1693737321209,3.97384146,19.434,19.421,0.5]
[1693737321410,58.97384146,19.434,19.421,0.5]
[1693737325731,3.97384146,19.434,19.421,0.5]
[1693737326230,3.97384146,19.434,19.42,55.0]
[1693737327333,3.97384146,19.434,19.421,0.5]
[1693737333753,3.97384146,19.434,19.42,55.0]
[1693737335045,3.97384146,19.434,19.421,0.5]
[1693737338555,59.44461036,19.435,19.421,0.5]